bitfinex-derivatives/quotes_ETHF0:USTF0_20250116
["timestamp","ask_amount","ask_price","bid_price","bid_amount"]
[1737067007839,4.9847,3275.6,3275.2,0.61074]
[1737067008035,1.7769,3275.6,3275.0,1.309]
[1737067008241,1.7769,3275.6,3275.4,0.6107]
[1737067008440,1.7769,3275.6,3275.0,1.309]
[1737067008740,1.7769,3275.6,3275.3,0.61071]
[1737067008940,1.7769,3275.6,3275.4,0.6107]
[1737067009940,1.7769,3275.6,3275.3,0.61071]
[1737067011337,0.61075,3275.2,3274.9,4.5168]
[1737067011543,3.81855,3275.2,3274.9,1.309]
[1737067012639,3.2078,3275.2,3274.9,1.309]
[1737067012948,0.61076,3275.1,3274.9,1.309]
[1737067013937,0.61079,3275.0,3274.6,0.61084]
[1737067014138,3.2078,3275.2,3274.7,1.308]
[1737067014341,0.61078,3275.0,3274.7,1.91882]
[1737067014742,3.2078,3275.2,3274.7,1.308]
[1737067014935,0.61074,3275.2,3274.8,0.6108]
[1737067015131,3.81854,3275.2,3274.7,1.308]
[1737067015333,0.61071,3275.4,3275.0,0.61076]
[1737067015538,0.61074,3275.2,3274.9,0.61079]
[1737067015740,0.61072,3275.3,3274.9,0.61078]
[1737067016830,0.61073,3275.3,3275.0,0.61077]
[1737067017037,4.9847,3275.6,3274.4,3.2078]
[1737067017242,3.81855,3275.2,3274.9,0.61078]
[1737067017938,4.9847,3275.6,3274.5,1.308]
[1737067018140,0.61073,3275.3,3275.0,0.61077]
[1737067018344,0.61073,3275.3,3274.5,1.308]
[1737067018646,0.61073,3275.3,3275.1,0.61075]
[1737067018842,4.9847,3275.6,3274.5,1.308]
[1737067019050,0.61071,3275.4,3275.2,0.61072]
[1737067019544,4.9847,3275.6,3274.5,1.308]
[1737067019545,4.9847,3275.6,3274.8,3.2078]
[1737067019939,0.61071,3275.4,3275.2,0.61073]
[1737067020140,4.9847,3275.6,3274.5,1.308]
[1737067020456,4.9847,3275.6,3274.6,0.61085]
[1737067020457,0.61075,3275.2,3274.6,0.61085]
[1737067020638,3.2078,3275.2,3274.5,1.308]
[1737067020839,0.61083,3274.7,3274.4,0.61088]
[1737067021039,0.61086,3274.6,3274.3,0.6109]
[1737067022039,3.2078,3274.8,3274.4,1.308]
[1737067022846,0.61086,3274.6,3274.4,1.308]
[1737067023251,3.2078,3274.8,3274.4,1.308]
[1737067023647,0.61085,3274.7,3274.4,1.308]
[1737067023860,0.61085,3274.6,3274.4,1.308]
[1737067024353,3.2078,3274.8,3274.4,1.308]
[1737067024650,3.2078,3274.8,3274.5,0.61086]
[1737067025049,3.2078,3274.8,3274.6,0.61085]
[1737067025439,3.2078,3274.8,3274.7,0.61083]
[1737067025645,1.6652,3275.0,3274.7,0.61083]
[1737067025855,2.27598,3275.0,3274.7,0.61083]
[1737067026048,2.27598,3275.0,3274.4,1.308]
[1737067026049,1.6652,3275.0,3274.4,1.308]
[1737067026256,1.6652,3275.0,3274.9,0.61079]
[1737067026546,3.2078,3275.4,3274.4,1.308]
[1737067026746,1.6511,3275.3,3274.7,0.61082]
[1737067026948,0.61077,3275.1,3274.8,0.61081]
[1737067027340,0.61085,3274.6,3274.4,1.91888]
[1737067027545,2.86471196,3274.9,3274.2,1.308]
[1737067027744,0.61089,3274.4,3274.2,1.308]
[1737067027954,4.55641196,3274.5,3273.6,3.2078]
[1737067028151,0.61098,3274.0,3273.7,1.308]
[1737067028352,0.61101,3273.8,3273.7,1.308]
[1737067028744,3.2078,3273.8,3273.1,40.8]
[1737067029055,1.52755,3273.7,3273.0,3.48395808]
[1737067029260,0.61111,3273.3,3273.0,3.48395808]
[1737067029458,0.61111,3273.2,3273.0,3.48395808]
[1737067029755,0.61111,3273.2,3273.0,3.2078]
[1737067029953,0.61113,3273.1,3273.0,3.2078]
[1737067030254,0.61111,3273.3,3273.0,3.2078]
[1737067030450,0.61111,3273.3,3272.9,1.91916]
[1737067030955,3.2078,3273.4,3273.0,0.61114]
[1737067031253,3.2078,3273.4,3273.3,0.61109]
[1737067031658,3.2078,3273.4,3273.3,1.91909]
[1737067032351,1.7544,3273.6,3273.3,1.308]
[1737067032555,1.7544,3273.6,3273.4,0.61106]
[1737067033159,1.7544,3273.6,3273.3,1.308]
[1737067033353,2.36544,3273.6,3273.3,1.91909]
[1737067034463,1.7544,3273.6,3273.3,1.308]
[1737067034662,1.7544,3273.6,3273.3,1.91908]
[1737067035058,1.7544,3273.6,3273.3,1.308]
[1737067035264,1.7544,3273.6,3273.4,0.61107]
[1737067035470,1.7544,3273.6,3273.3,1.308]
[1737067035658,1.7544,3273.6,3273.4,0.61107]
[1737067036865,1.7544,3273.6,3273.5,0.61105]
[1737067038364,1.7544,3273.6,3273.4,0.61106]
[1737067038665,1.7544,3273.6,3273.4,0.61107]
[1737067038865,1.7544,3273.6,3273.5,0.61105]
[1737067039066,1.7544,3273.6,3273.4,0.61106]
[1737067039463,1.7544,3273.6,3273.0,1.286]
[1737067039665,3.2078,3273.2,3272.7,0.6112]
[1737067039854,3.2078,3273.2,3272.8,1.286]
[1737067040055,0.61114,3273.1,3272.8,1.286]
[1737067040359,0.61115,3273.0,3272.8,1.286]
[1737067040868,3.2078,3273.2,3272.8,1.286]
[1737067041067,0.61114,3273.1,3272.8,1.286]
[1737067041360,0.61113,3273.1,3272.8,1.89717]
[1737067041565,3.2078,3273.2,3272.8,1.286]
[1737067042059,0.61114,3273.1,3272.8,1.286]
[1737067042268,3.2078,3273.2,3272.8,1.286]
[1737067042972,0.61114,3273.1,3272.8,1.286]
[1737067043466,0.61114,3273.1,3272.8,1.89718]
[1737067043768,3.2078,3273.2,3272.8,1.286]
[1737067043966,0.61114,3273.1,3272.8,1.89718]
[1737067044768,3.2078,3273.2,3272.4,16.2058]
[1737067045068,0.61115,3273.0,3272.7,0.61119]
[1737067045663,0.61113,3273.1,3272.5,1.286]
[1737067045966,0.61125,3272.5,3272.4,1.286]
[1737067046264,3.2078,3272.8,3272.4,1.286]
[1737067046472,0.61122,3272.7,3272.4,1.89726]
[1737067046969,0.61124,3272.5,3272.4,1.286]
[1737067047264,0.61123,3272.6,3272.4,1.286]
[1737067047472,0.61124,3272.5,3272.4,1.286]
[1737067047768,0.61125,3272.5,3272.4,1.286]
[1737067048558,1.7376,3272.7,3271.7,1.52846]
[1737067048871,0.61129,3272.3,3272.0,0.61132]
[1737067049067,3.2078,3272.4,3271.6,6.5826]
[1737067049269,3.2078,3272.0,3271.7,1.286]
[1737067049464,0.61136,3271.9,3271.7,1.286]
[1737067049763,3.2078,3272.0,3271.7,1.286]
[1737067049970,0.61135,3271.9,3271.7,1.286]
[1737067050570,3.81914,3272.0,3271.7,1.89738]
[1737067050774,4.73552,3273.4,3271.9,1.52838]
[1737067051064,2.31406989,3273.0,3272.5,3.2078]
[1737067051272,2.31406989,3273.0,3272.9,3.81897]
[1737067051464,2.31406989,3273.0,3272.9,44.61897]
[1737067052578,1.7317,3273.4,3273.3,0.61109]
[1737067053473,4.48767841,3273.9,3273.7,0.61101]
[1737067053865,2.28167,3274.0,3273.4,1.286]
[1737067053866,1.6707,3274.0,3273.4,1.286]
[1737067054069,1.6707,3274.0,3273.9,0.61098]
[1737067055375,1.6194,3274.5,3273.8,1.5275]
[1737067055572,1.6194,3274.5,3274.3,0.6109]
[1737067056165,1.6194,3274.5,3274.3,0.61089]
[1737067056372,1.6194,3274.5,3274.2,0.61091]
[1737067056771,0.61096,3274.1,3273.7,3.8188]
[1737067056965,3.2078,3274.3,3273.7,3.2078]
[1737067056966,2.86827841,3273.9,3273.7,3.2078]
[1737067057166,1.768,3273.8,3273.7,3.2078]
[1737067057377,2.379,3273.8,3273.7,3.2078]
[1737067057874,1.768,3273.8,3273.7,3.2078]
[1737067058073,1.768,3273.8,3273.7,3.81882]
[1737067061979,1.768,3273.8,3273.7,3.2078]
[1737067062479,1.768,3273.8,3273.7,3.81882]
[1737067062675,1.768,3273.8,3273.7,3.2078]
[1737067064082,1.768,3273.8,3273.7,3.81882]
[1737067064377,1.768,3273.8,3273.7,3.2078]
[1737067064579,1.768,3273.8,3273.7,3.81882]
[1737067064970,2.379,3273.8,3273.7,3.2078]
[1737067065166,1.768,3273.8,3273.7,3.2078]
[1737067065381,1.768,3273.8,3273.7,3.81882]
[1737067067982,0.61112,3273.2,3272.9,0.61115]
[1737067068177,3.2078,3273.0,3272.8,0.61118]
[1737067068484,3.81896,3273.0,3272.7,0.6112]
[1737067068678,3.81896,3273.0,3272.6,1.266]
[1737067068880,3.81896,3273.0,3272.6,0.61121]
[1737067069176,2.34777,3272.9,3272.6,0.61121]
[1737067069381,1.7366,3272.9,3272.5,1.266]
[1737067069677,1.7366,3272.9,3272.7,0.61119]
[1737067069883,2.34777,3272.9,3272.6,0.61121]
[1737067070086,1.7366,3272.9,3272.6,0.61121]
[1737067070284,1.7366,3272.9,3272.7,0.6112]
[1737067070479,2.34778,3272.9,3272.6,0.61121]
[1737067070777,0.61119,3272.8,3272.5,1.87723]
[1737067071083,2.34777,3272.9,3272.6,0.61122]
[1737067073075,1.7366,3272.9,3272.7,0.6112]
[1737067073585,2.36804342,3272.8,3272.7,0.6112]
[1737067073978,2.36804342,3272.8,3272.5,1.266]
[1737067074473,2.36804342,3272.8,3272.7,0.6112]
[1737067076670,3.2078,3273.0,3272.6,1.266]
[1737067076873,3.2078,3273.0,3272.9,0.61117]
[1737067077584,2.31406989,3273.1,3272.6,6.00184]
[1737067077778,2.31406989,3273.1,3273.0,0.61115]
[1737067078277,2.36804342,3273.4,3273.3,0.61109]
[1737067079476,2.31406989,3273.5,3273.4,0.61107]
[1737067079679,4.01776989,3273.6,3273.5,0.61105]
[1737067080582,2.31406989,3273.6,3273.5,0.61105]
[1737067080979,2.36804342,3273.7,3273.4,1.266]
[1737067081378,2.36804342,3273.7,3273.3,1.266]
[1737067081686,2.36804342,3273.4,3273.3,1.87709]
[1737067081985,2.36804342,3273.7,3273.6,0.61103]
[1737067082883,3.46662778,3273.8,3273.7,0.61102]
[1737067083580,5.30977122,3274.0,3273.7,0.61102]
[1737067083782,4.69880122,3274.0,3273.3,1.266]
[1737067083981,2.3307578,3274.0,3273.9,0.61098]
[1737067084781,1.7905,3274.1,3273.4,1.52769]
[1737067084981,1.7905,3274.1,3274.0,0.61096]
[1737067085586,1.7905,3274.1,3273.3,6.00151]
[1737067085789,0.61101,3273.8,3273.7,0.61101]
[1737067086584,2.97903342,3273.9,3273.7,1.87701]
[1737067087890,2.97903342,3273.9,3273.7,1.266]
[1737067088089,2.97903342,3273.9,3273.8,0.611]
[1737067088291,2.36804342,3273.9,3273.8,0.611]
[1737067088490,2.97902342,3273.9,3273.8,0.611]
[1737067088689,2.36804342,3273.9,3273.8,0.611]
[1737067089189,2.3307578,3274.0,3273.9,0.61098]
[1737067090283,3.46662778,3274.2,3273.9,5.61098]
[1737067090492,3.46662778,3274.2,3273.8,4.19104342]
[1737067090493,2.3322937,3274.5,3274.4,0.61089]
[1737067090789,2.3322937,3274.5,3274.4,1.87689]
[1737067091893,1.7599,3274.7,3274.6,0.61085]
[1737067092683,5.8346712,3275.1,3274.4,1.266]
[1737067092891,5.8346712,3275.1,3274.9,0.61079]
[1737067093397,2.97880342,3275.1,3274.8,0.6108]
[1737067093591,2.36804342,3275.1,3274.5,0.61087]
[1737067093896,2.36804342,3275.1,3274.4,1.266]
[1737067094092,2.36804342,3275.1,3274.9,0.61079]
[1737067094295,3.2078,3275.3,3274.5,3.2078]
[1737067094491,3.2078,3275.3,3275.2,0.61074]
[1737067094689,3.2078,3275.3,3275.2,1.86874]
[1737067097392,3.46662778,3276.1,3275.2,8.62604342]
[1737067097694,3.46662778,3276.2,3276.1,0.61057]
[1737067097996,3.46662778,3276.2,3276.1,1.86857]
[1737067098999,3.81829,3276.6,3276.2,0.61054]
[1737067100000,3.81829,3276.6,3276.2,0.61053]
[1737067100396,3.2078,3276.6,3276.1,1.258]
[1737067100594,3.2078,3276.6,3276.3,0.61052]
[1737067102295,3.2078,3276.6,3276.4,0.61051]
[1737067102497,3.2078,3277.8,3276.5,5.57584342]
[1737067102691,1.8548,3277.6,3276.9,3.2078]
[1737067102898,1.8548,3277.6,3277.3,0.61034]
[1737067103204,1.8548,3277.6,3277.4,0.61032]
[1737067103400,1.8548,3277.6,3277.5,0.61031]
[1737067104107,1.8548,3277.6,3277.0,1.258]
[1737067104409,1.8548,3277.6,3277.5,0.61031]
[1737067105809,1.8548,3277.6,3277.3,1.86734]
[1737067106101,2.46509,3277.6,3277.3,1.257]
[1737067106307,1.8548,3277.6,3277.4,1.257]
[1737067106608,2.46509,3277.6,3277.4,1.257]
[1737067106795,1.8548,3277.6,3277.4,1.257]
[1737067107102,1.8548,3277.6,3277.4,1.86732]
[1737067107302,1.8548,3277.6,3277.4,1.257]
[1737067107509,1.8548,3277.6,3277.5,0.61031]
[1737067107897,1.8548,3277.6,3277.5,3.81811]
[1737067108794,1.8265,3278.2,3277.5,3.2078]
[1737067108994,3.6607,3278.2,3278.1,0.6102]
[1737067109706,1.7476,3278.7,3278.6,0.6101]
[1737067109909,1.7476,3278.7,3278.6,1.8671]
[1737067110516,3.5288,3279.0,3278.8,0.61005]
[1737067110704,1.8342,3279.0,3278.9,0.61005]
[1737067111202,3.2078,3279.3,3279.2,0.60999]
[1737067111509,1.6946,3279.6,3279.1,3.2078]
[1737067111801,1.6946,3279.6,3279.5,2.97798342]
[1737067112012,1.6946,3279.6,3279.5,4.23498342]
[1737067112309,3.408,3280.5,3279.5,6.83284342]
[1737067112605,5.1677,3280.5,3280.4,0.60977]
[1737067112803,1.7597,3280.5,3280.4,1.86677]
[1737067113012,1.7597,3280.5,3280.4,5.07457]
[1737067113198,1.8628,3281.1,3280.4,4.4648]
[1737067113398,1.8628,3281.1,3280.8,0.60968]
[1737067113805,1.8628,3281.1,3281.0,0.60966]
[1737067114206,1.7597,3281.2,3281.1,0.60964]
[1737067115313,3.2078,3282.1,3280.9,2.85436268]
[1737067115608,0.60953,3281.7,3281.1,0.60963]
[1737067115800,3.675,3282.0,3281.6,0.60954]
[1737067116002,3.675,3282.0,3281.7,1.86651]
[1737067116206,3.675,3282.0,3281.8,0.6095]
[1737067116509,3.675,3282.0,3281.7,1.257]
[1737067116899,3.675,3282.0,3281.7,1.86652]
[1737067117509,3.675,3282.0,3281.7,1.257]
[1737067118304,3.675,3282.0,3281.8,0.60949]
[1737067118610,1.8122,3282.0,3281.8,0.60949]
[1737067118810,1.8122,3282.0,3281.7,4.11136268]
[1737067119111,1.8122,3282.0,3281.9,0.60949]
[1737067119802,0.60936,3282.6,3281.7,4.11136268]
[1737067120009,0.60936,3282.6,3282.0,3.2078]
[1737067120310,3.54,3282.7,3281.7,4.11136268]
[1737067120311,1.8059,3282.7,3282.4,3.2078]
[1737067120605,1.8059,3282.7,3282.6,0.60936]
[1737067120905,1.8059,3282.7,3282.5,1.256]
[1737067120906,3.2078,3283.0,3282.9,0.6093]
[1737067121500,4.9156,3283.7,3283.0,0.60928]
[1737067121899,3.2078,3283.7,3282.9,6.06216268]
[1737067122096,3.2078,3283.7,3283.3,0.60922]
[1737067122301,3.2078,3283.7,3283.4,1.256]
[1737067122703,1.7403,3284.3,3283.4,1.256]
[1737067122896,0.60906,3284.2,3283.5,0.60919]
[1737067123101,2.34935,3284.3,3283.7,3.2078]
[1737067123298,1.7403,3284.3,3283.7,3.2078]
[1737067123808,1.7403,3284.3,3283.7,3.81695]
[1737067124205,1.7403,3284.3,3284.1,3.2078]
[1737067124400,1.8077,3284.4,3284.2,1.259]
[1737067126003,1.8077,3284.4,3284.2,1.86806]
[1737067126203,1.8077,3284.4,3284.2,1.259]
[1737067126400,0.60894,3284.9,3284.2,1.86805]
[1737067126608,0.60894,3284.9,3284.3,0.60904]
[1737067126912,2.43972,3285.0,3284.4,0.60902]
[1737067127106,2.43972,3285.0,3284.2,1.259]
[1737067127506,1.8308,3285.0,3283.7,6.06216268]
[1737067127702,2.13128,3284.9,3283.8,1.258]
[1737067127915,0.60905,3284.3,3283.8,1.258]
[1737067128117,3.2078,3284.8,3284.1,3.2078]
[1737067128420,2.43972,3285.0,3284.4,0.60902]
[1737067128715,0.60895,3284.9,3284.3,0.60904]
[1737067129012,2.43973,3285.0,3284.4,0.60902]
[1737067129210,2.43972,3285.0,3284.5,3.8168]
[1737067129508,3.2078,3286.2,3285.2,0.60887]
[1737067129713,0.60876,3285.9,3285.3,0.60886]
[1737067129912,0.60876,3285.9,3285.4,1.258]
[1737067130307,1.7395,3286.0,3285.4,1.258]
[1737067130507,1.7395,3286.0,3285.6,0.60879]
[1737067130708,1.7395,3286.0,3285.4,1.258]
[1737067130907,1.7395,3286.0,3285.5,0.60881]
[1737067131207,1.7395,3286.0,3285.6,0.60879]
[1737067131403,1.7395,3286.0,3285.4,1.258]
[1737067131404,0.60864,3286.5,3285.7,6.06216268]
[1737067131605,0.60864,3286.5,3285.9,0.60873]
[1737067132010,0.60864,3286.5,3285.7,6.06216268]
[1737067132200,0.60864,3286.5,3286.0,0.60872]
[1737067132406,3.2078,3286.6,3286.1,0.6087]
[1737067132614,3.2078,3286.6,3286.2,1.258]
[1737067132615,0.60864,3286.5,3286.2,1.258]
[1737067132815,0.60864,3286.5,3286.0,0.60872]
[1737067132816,0.60864,3286.5,3286.0,1.258]
[1737067133008,3.2078,3286.6,3286.0,1.258]
[1737067133009,0.60869,3286.3,3286.0,1.258]
[1737067133207,3.2078,3286.6,3286.0,1.258]
[1737067133409,0.60869,3286.3,3286.0,1.258]
[1737067133709,3.2078,3286.6,3286.0,1.258]
[1737067134113,0.60866,3286.4,3286.0,1.258]
[1737067134713,3.2078,3286.6,3286.0,4.4658]
[1737067135019,1.7395,3286.8,3286.5,0.60863]
[1737067135210,1.7395,3286.8,3286.1,2.85436268]
[1737067135409,1.7395,3286.8,3286.6,0.60861]
[1737067135610,1.7395,3286.8,3286.2,40.8]
[1737067135813,1.7395,3286.8,3286.0,3.2078]
[1737067136118,0.60866,3286.4,3286.3,1.257]
[1737067137010,3.2078,3286.6,3286.2,1.257]
[1737067137211,3.2078,3286.6,3285.6,3.2078]
[1737067137410,3.2078,3286.6,3285.3,2.85436268]
[1737067137411,3.2078,3285.8,3284.9,2.85436268]
[1737067137606,2.85436268,3286.3,3284.9,1.257]
[1737067137607,3.2078,3285.4,3284.9,1.257]
[1737067137805,0.60891,3285.0,3284.9,1.257]
[1737067138211,3.2078,3285.4,3284.7,1.257]
[1737067138411,3.2078,3285.0,3284.2,3.2078]
[1737067138619,0.60914,3283.8,3283.6,1.257]
[1737067138816,3.2078,3285.0,3283.7,2.85436268]
[1737067139022,3.2078,3285.0,3283.9,3.2078]
[1737067139322,0.60903,3284.4,3283.9,3.2078]
[1737067139619,0.60903,3284.4,3283.7,43.65436268]
[1737067139620,3.2078,3284.6,3283.7,43.65436268]
[1737067139814,0.60908,3284.2,3283.7,3.46351268]
[1737067140016,3.2078,3284.6,3283.7,2.85436268]
[1737067140529,0.60916,3283.7,3283.4,4.4648]
[1737067141520,0.60916,3283.7,3283.4,1.257]
[1737067142020,0.60915,3283.8,3283.4,1.257]
[1737067142221,0.60915,3283.8,3282.9,44.26366268]
[1737067142222,0.60922,3283.4,3282.9,44.26366268]
[1737067142520,0.60922,3283.4,3283.0,1.257]
[1737067142915,3.2078,3283.8,3283.0,1.257]
[1737067143214,3.2078,3283.8,3283.0,1.86628]
[1737067143215,0.60919,3283.5,3283.0,1.86628]
[1737067143419,1.7497,3284.1,3283.0,1.257]
[1737067143815,0.60914,3283.8,3283.3,0.60923]
[1737067144023,0.60914,3283.8,3283.0,1.257]
[1737067144217,0.60914,3283.8,3283.3,0.60922]
[1737067144419,0.60912,3283.9,3283.3,3.2078]
[1737067144614,0.60913,3283.9,3283.4,0.6092]
[1737067145121,0.60913,3283.9,3283.4,0.60921]
[1737067145321,1.7497,3284.1,3283.3,6.06216268]
[1737067145621,1.7497,3284.1,3283.7,2.85436268]
[1737067145818,1.7497,3284.1,3284.0,0.6091]
[1737067146129,1.52279,3284.0,3282.8,0.60931]
[1737067146318,3.81698,3283.6,3282.9,0.60929]
[1737067146623,0.60921,3283.4,3282.8,0.60932]
[1737067146819,3.2078,3283.6,3282.7,4.11236268]
[1737067147025,3.2078,3283.2,3282.7,4.11236268]
[1737067147224,3.2078,3283.2,3282.7,1.258]
[1737067147424,0.60929,3283.0,3282.7,1.258]
[1737067147622,0.6093,3282.9,3282.7,1.258]
[1737067147819,0.60936,3282.6,3282.5,40.8]
[1737067148124,0.60937,3282.6,3282.4,1.258]
[1737067148521,0.60938,3282.5,3282.4,1.258]
[1737067148720,3.2078,3282.8,3282.3,2.85436268]
[1737067148721,0.60941,3282.4,3282.3,1.258]
[1737067148917,0.60939,3282.5,3282.3,1.258]
[1737067149937,3.2078,3282.8,3282.3,1.258]
[1737067150427,0.60945,3282.2,3281.5,3.46391268]
[1737067150719,0.60944,3282.2,3281.8,1.258]
[1737067152614,0.60945,3282.2,3281.8,1.258]
[1737067152820,0.60946,3282.1,3281.8,1.258]
[1737067153624,3.2078,3282.4,3281.8,1.258]
[1737067153825,0.60947,3282.0,3281.8,1.258]
[1737067154327,0.60947,3282.0,3281.6,0.60953]
[1737067154328,3.2078,3281.9,3281.3,1.275]
[1737067154514,3.2078,3281.9,3281.1,2.85436268]
[1737067154515,0.60951,3281.8,3281.2,13.40162]
[1737067154721,0.60954,3281.7,3281.4,1.275]
[1737067155429,3.2078,3281.9,3281.5,0.60955]
[1737067155628,3.2078,3281.9,3281.6,0.60954]
[1737067155927,1.7374,3282.2,3281.5,2.85436268]
[1737067156125,3.2078,3282.3,3281.9,0.60948]
[1737067157119,3.2078,3282.3,3281.5,2.85436268]
[1737067157723,6.7872,3282.9,3281.9,2.85436268]
[1737067157919,6.7872,3282.9,3282.0,1.52369]
[1737067157920,4.9823,3282.9,3282.0,1.52369]
[1737067158125,3.2078,3282.9,3282.8,0.60932]
[1737067158319,3.2078,3282.9,3282.8,1.88432]
[1737067159928,3.2078,3283.4,3283.0,0.60927]
[1737067160222,3.2078,3283.4,3282.8,1.275]
[1737067160428,3.2078,3283.4,3283.2,0.60924]
[1737067161031,3.2078,3283.4,3282.8,1.275]
[1737067161629,3.2078,3283.4,3283.2,0.60923]
[1737067161820,0.60919,3283.6,3283.3,0.60923]
[1737067162129,0.60919,3283.6,3282.8,2.79831]
[1737067162328,1.7682,3283.7,3282.8,2.79831]
[1737067162528,1.7682,3283.7,3283.2,0.60923]
[1737067162529,0.60917,3283.6,3283.2,0.60923]
[1737067162926,1.7682,3283.7,3283.2,0.60923]
[1737067163138,0.60919,3283.5,3283.2,0.60923]
[1737067163338,4.62256268,3283.7,3282.8,1.275]
[1737067163530,4.62256268,3283.7,3282.5,3.2078]
[1737067163531,3.2078,3283.4,3282.5,3.2078]
[1737067163835,0.60935,3282.7,3282.4,1.88439]
[1737067164239,0.60935,3282.7,3282.5,0.60937]
[1737067164542,0.60934,3282.7,3282.4,1.88439]
[1737067164750,0.60934,3282.7,3282.4,1.275]
[1737067164937,3.2078,3283.0,3282.4,1.275]
[1737067165337,3.2078,3282.6,3282.4,1.275]
[1737067166242,3.81717,3282.6,3282.4,1.275]
[1737067166443,3.2078,3282.6,3282.4,1.275]
[1737067166738,3.81709,3283.0,3282.4,1.275]
[1737067167137,3.81709,3283.0,3282.6,0.60935]
[1737067167338,3.2078,3283.0,3282.7,0.60933]
[1737067167944,3.2078,3283.0,3282.4,1.275]
[1737067168544,0.6092,3283.5,3282.5,2.85436268]
[1737067168739,3.2078,3283.6,3282.7,1.52336]
[1737067168946,3.81698,3283.6,3283.3,0.60922]
[1737067169345,3.2078,3283.6,3283.2,1.275]
[1737067169544,3.2078,3283.6,3283.5,0.60919]
[1737067172750,3.2078,3284.1,3283.3,6.06216268]
[1737067173048,3.2078,3284.1,3284.0,0.6091]
[1737067173248,0.60902,3284.5,3284.0,1.275]
[1737067173448,3.2078,3284.6,3284.0,1.275]
[1737067173846,3.2078,3284.6,3284.3,0.60903]
[1737067174441,3.2078,3284.6,3284.1,0.60908]
[1737067174747,3.2078,3284.2,3282.9,3.2078]
[1737067174948,3.2078,3283.6,3282.8,2.85436268]
[1737067175141,3.2078,3283.0,3282.8,2.85436268]
[1737067175548,3.2078,3283.0,3282.8,3.46367268]
[1737067175745,3.2078,3283.0,3282.9,0.6093]
[1737067177042,3.2078,3283.0,3282.8,2.85436268]
[1737067177238,3.2078,3283.0,3282.9,0.6093]
[1737067177453,3.2078,3283.0,3282.8,3.46368268]
[1737067178153,3.2078,3283.0,3282.8,2.85436268]
[1737067178356,3.2078,3283.0,3282.9,0.6093]
[1737067178551,3.2078,3283.0,3282.8,2.85436268]
[1737067178852,3.2078,3283.0,3282.9,0.6093]
[1737067180843,2.36556,3283.7,3282.9,1.52326]
[1737067181048,2.36556,3283.7,3283.3,0.60922]
[1737067181252,3.2078,3283.8,3283.4,1.275]
[1737067181453,3.2078,3283.8,3283.7,0.60916]
[1737067182342,3.43555223,3284.4,3283.7,0.60916]
[1737067182549,3.8168,3284.6,3284.2,0.60906]
[1737067182951,0.60901,3284.5,3284.2,1.274]
[1737067183258,3.8168,3284.6,3284.2,1.88306]
[1737067183459,0.60902,3284.5,3284.2,1.274]
[1737067184358,0.60901,3284.5,3284.2,1.88306]
[1737067184758,3.8168,3284.6,3284.2,1.88306]
[1737067185357,3.2078,3284.6,3284.4,0.60902]
[1737067186156,3.2078,3284.6,3284.5,0.60901]
[1737067186557,3.2078,3284.6,3284.4,0.60903]
[1737067186861,3.2078,3284.6,3284.4,0.60902]
[1737067187561,3.2078,3284.6,3284.5,0.60901]
[1737067187757,3.2078,3284.6,3284.2,1.274]
[1737067188061,3.43555223,3285.1,3284.4,2.85436268]
[1737067188359,3.43555223,3285.1,3285.0,0.60891]
[1737067188557,3.43555223,3285.1,3285.0,1.87191]
[1737067189160,3.2078,3285.2,3285.0,1.263]
[1737067189557,3.2078,3285.2,3285.1,0.6089]
[1737067190063,3.43555223,3285.3,3285.2,0.60888]
[1737067190866,3.5929,3285.8,3285.5,0.60882]
[1737067191162,3.5929,3285.8,3285.0,1.263]
[1737067191466,3.5929,3285.8,3285.0,2.78527]
[1737067191663,3.5929,3285.8,3285.5,0.60881]
[1737067191860,3.5929,3285.8,3285.4,0.60884]
[1737067192066,3.2078,3285.5,3285.4,0.60884]
[1737067192360,3.2078,3285.5,3285.0,1.263]
[1737067192564,3.2078,3285.5,3285.2,0.60887]
[1737067192766,3.2078,3285.5,3285.1,0.60889]
[1737067192767,3.81663,3285.5,3285.1,0.60889]
[1737067193260,3.2078,3285.5,3285.0,1.263]
[1737067193563,3.2078,3285.5,3285.2,0.60887]
[1737067194460,3.2078,3285.9,3285.2,2.85436268]
[1737067194767,3.2078,3285.9,3285.7,0.60878]
[1737067194962,3.2078,3285.9,3285.8,1.87177]
[1737067196370,0.60871,3286.2,3285.8,1.263]
[1737067196568,3.2078,3285.9,3285.8,1.263]
[1737067197061,3.2078,3285.9,3285.8,1.87177]
[1737067198265,3.2078,3285.9,3285.8,1.263]
[1737067198668,2.44418,3286.3,3285.9,0.60874]
[1737067199468,1.8355,3286.3,3286.1,0.60871]
[1737067199668,3.2078,3286.4,3286.3,0.60867]
[1737067200367,3.665,3287.1,3286.7,0.6086]
[1737067200667,3.665,3287.1,3286.8,1.263]
[1737067200874,3.2078,3286.9,3286.5,2.85436268]
[1737067201070,3.665,3287.1,3286.8,0.60857]
[1737067201265,3.2078,3286.9,3286.7,0.60859]
[1737067201571,3.2078,3286.9,3286.6,42.063]
[1737067201770,3.2078,3286.9,3286.6,42.67161]
[1737067202379,3.2078,3286.9,3286.6,1.263]